[Event "*** Biggest EVER Titled Tuesday"]
[Site "Chess.com"]
[Date "2018.04.17"]
[Round "5"]
[White "ChessicallyInclined"]
[Black "toad"]
[Result "1-0"]
[WhiteElo "2152"]
[BlackElo "2190"]
[TimeControl "180+2"]
[EndTime "14:06:04 PDT"]
[Termination "ChessicallyInclined won by resignation"]

1. d4 {[%clk 0:03:01.9]} 1... Nf6 {[%clk 0:03:00.7]} 2. c4 {[%clk 0:03:02.3]}
2... g6 {[%clk 0:03:01.9]} 3. Nc3 {[%clk 0:03:03]} 3... d5 {[%clk 0:03:03]} 4.
Nf3 {[%clk 0:03:03.8]} 4... Bg7 {[%clk 0:03:03.9]} 5. Qb3 {[%clk 0:03:04.8]}
5... dxc4 {[%clk 0:03:03.8]} 6. Qxc4 {[%clk 0:03:06.7]} 6... O-O {[%clk
0:03:04.3]} 7. e4 {[%clk 0:03:07.7]} 7... a6 {[%clk 0:03:05.3]} 8. Be2 {[%clk
0:03:06.7]} 8... b5 {[%clk 0:03:05.6]} 9. Qb3 {[%clk 0:03:07.7]} 9... c5 {[%clk
0:03:05.5]} 10. dxc5 {[%clk 0:03:07.7]} 10... Bb7 {[%clk 0:03:06.3]} 11. Be3
{[%clk 0:03:05.4]} 11... Nxe4 {[%clk 0:03:05.5]} 12. Nxe4 {[%clk 0:03:06.3]}
12... Bxe4 {[%clk 0:03:06.5]} 13. O-O {[%clk 0:03:07.4]} 13... Nc6 {[%clk
0:02:55]} 14. Rfd1 {[%clk 0:03:07.5]} 14... Qc7 {[%clk 0:02:55.3]} 15. Rac1
{[%clk 0:03:01.1]} 15... Rad8 {[%clk 0:02:30.6]} 16. Rxd8 {[%clk 0:02:56.2]}
16... Rxd8 {[%clk 0:02:31.3]} 17. a4 {[%clk 0:02:54]} 17... bxa4 {[%clk
0:02:10.2]} 18. Qxa4 {[%clk 0:02:53.5]} 18... Bxb2 {[%clk 0:02:10.5]} 19. Qxe4
{[%clk 0:02:53.7]} 19... Bxc1 {[%clk 0:02:10.8]} 20. Bxc1 {[%clk 0:02:54.1]}
20... e5 {[%clk 0:01:23.2]} 21. Bg5 {[%clk 0:02:51.9]} 21... Rb8 {[%clk
0:01:15.1]} 22. h4 {[%clk 0:02:42.3]} 22... h5 {[%clk 0:01:01.9]} 23. Bf6 {[%clk
0:02:33.8]} 23... Re8 {[%clk 0:00:57.5]} 24. Bc4 {[%clk 0:02:32.4]} 24... Kh7
{[%clk 0:00:41.2]} 25. Ng5+ {[%clk 0:02:22.3]} 25... Kh6 {[%clk 0:00:37.6]} 26.
Bxf7 {[%clk 0:02:17]} 26... Ne7 {[%clk 0:00:17.5]} 27. Bxe7 {[%clk 0:02:15]}
27... Qc6 {[%clk 0:00:10.4]} 28. Qxc6 {[%clk 0:02:13]} 1-0

[Event "*** Biggest EVER Titled Tuesday"]
[Site "Chess.com"]
[Date "2018.04.17"]
[Round "5"]
[White "Kazakov_Konstantin"]
[Black "KenanGarayev"]
[Result "0-1"]
[WhiteElo "2467"]
[BlackElo "2568"]
[TimeControl "180+2"]
[EndTime "14:06:19 PDT"]
[Termination "KenanGarayev won by resignation"]

1. e4 {[%clk 0:03:01.9]} 1... c5 {[%clk 0:03:00.1]} 2. Nf3 {[%clk 0:03:01.8]}
2... d6 {[%clk 0:03:00.7]} 3. d4 {[%clk 0:03:01.8]} 3... cxd4 {[%clk 0:03:02.6]}
4. Nxd4 {[%clk 0:02:58.1]} 4... Nf6 {[%clk 0:03:03.3]} 5. Nc3 {[%clk 0:02:59.5]}
5... g6 {[%clk 0:03:02.5]} 6. Be2 {[%clk 0:02:58.4]} 6... Bg7 {[%clk 0:02:57.9]}
7. O-O {[%clk 0:02:59.6]} 7... Nc6 {[%clk 0:02:57.5]} 8. Nb3 {[%clk 0:02:56.8]}
8... Be6 {[%clk 0:02:50.9]} 9. f4 {[%clk 0:02:57.5]} 9... O-O {[%clk 0:02:50.1]}
10. Be3 {[%clk 0:02:56.6]} 10... Qc8 {[%clk 0:02:49.5]} 11. Qd2 {[%clk
0:02:46.8]} 11... Rd8 {[%clk 0:02:48.8]} 12. h3 {[%clk 0:02:35.7]} 12... d5
{[%clk 0:02:42.7]} 13. e5 {[%clk 0:02:36.1]} 13... Ne4 {[%clk 0:02:41.3]} 14.
Nxe4 {[%clk 0:02:30.9]} 14... dxe4 {[%clk 0:02:43.2]} 15. Qe1 {[%clk 0:02:30.4]}
15... f6 {[%clk 0:02:43.6]} 16. Nc5 {[%clk 0:02:27.3]} 16... fxe5 {[%clk
0:02:30.7]} 17. Nxe6 {[%clk 0:02:22.3]} 17... Qxe6 {[%clk 0:02:32.6]} 18. Bg4
{[%clk 0:02:23.1]} 18... Qd5 {[%clk 0:02:25.2]} 19. f5 {[%clk 0:02:24]} 19...
Nd4 {[%clk 0:02:23.6]} 20. fxg6 {[%clk 0:02:19.4]} 20... hxg6 {[%clk 0:02:25.5]}
21. Rf2 {[%clk 0:02:11.8]} 21... Rf8 {[%clk 0:02:20.5]} 22. c3 {[%clk
0:02:10.6]} 22... Nf5 {[%clk 0:02:21]} 23. Bg5 {[%clk 0:02:06.6]} 23... Qc5
{[%clk 0:02:17.5]} 24. Qxe4 {[%clk 0:02:01.1]} 24... Qxf2+ {[%clk 0:02:17.5]}
25. Kxf2 {[%clk 0:01:58.3]} 25... Nd6+ {[%clk 0:02:19.4]} 26. Qf3 {[%clk
0:01:59]} 26... Ne4+ {[%clk 0:02:16.4]} 27. Ke2 {[%clk 0:01:44]} 27... Rxf3
{[%clk 0:02:15.5]} 28. Bxf3 {[%clk 0:01:40]} 28... Nxg5 {[%clk 0:02:16.4]} 29.
Bxb7 {[%clk 0:01:36.8]} 29... Rb8 {[%clk 0:02:17.1]} 30. Bd5+ {[%clk 0:01:37.7]}
30... e6 {[%clk 0:02:18.2]} 31. Bb3 {[%clk 0:01:38.4]} 31... a5 {[%clk
0:02:14.7]} 32. h4 {[%clk 0:01:38.1]} 32... Ne4 {[%clk 0:02:11.8]} 33. Bxe6+
{[%clk 0:01:33.3]} 33... Kh7 {[%clk 0:02:10.4]} 34. Bb3 {[%clk 0:01:28.8]} 34...
Nc5 {[%clk 0:02:05.1]} 35. Kd1 {[%clk 0:01:21.9]} 35... a4 {[%clk 0:02:02.7]}
36. Bc2 {[%clk 0:01:20.8]} 36... Rxb2 {[%clk 0:02:01.6]} 37. h5 {[%clk
0:01:21.7]} 37... e4 {[%clk 0:02:02.5]} 38. hxg6+ {[%clk 0:01:22.4]} 38... Kxg6
{[%clk 0:02:04.4]} 39. Rb1 {[%clk 0:01:19.9]} 39... Rxb1+ {[%clk 0:02:02.1]} 40.
Bxb1 {[%clk 0:01:21]} 40... Bxc3 {[%clk 0:02:03.3]} 41. Ke2 {[%clk 0:01:21.9]}
41... Bd4 {[%clk 0:02:02.8]} 0-1

[Event "*** Biggest EVER Titled Tuesday"]
[Site "Chess.com"]
[Date "2018.04.17"]
[Round "5"]
[White "ajkom197"]
[Black "MikaelyanArman"]
[Result "0-1"]
[WhiteElo "2393"]
[BlackElo "2588"]
[TimeControl "180+2"]
[EndTime "14:06:19 PDT"]
[Termination "MikaelyanArman won on time"]

1. d4 {[%clk 0:02:59.4]} 1... d5 {[%clk 0:03:00.6]} 2. Nf3 {[%clk 0:02:59]} 2...
Nf6 {[%clk 0:03:01.2]} 3. e3 {[%clk 0:03:00.2]} 3... c6 {[%clk 0:03:00.3]} 4.
Be2 {[%clk 0:03:00.1]} 4... Bf5 {[%clk 0:02:58.2]} 5. O-O {[%clk 0:03:00.5]}
5... Nbd7 {[%clk 0:02:59]} 6. c4 {[%clk 0:03:00.7]} 6... e6 {[%clk 0:03:00.1]}
7. Nc3 {[%clk 0:03:01]} 7... Bd6 {[%clk 0:03:01]} 8. b3 {[%clk 0:03:00.9]} 8...
O-O {[%clk 0:03:01.2]} 9. Bb2 {[%clk 0:03:01.5]} 9... Qe7 {[%clk 0:03:01.9]} 10.
h3 {[%clk 0:03:01.9]} 10... h6 {[%clk 0:03:01.5]} 11. Rc1 {[%clk 0:03:01.5]}
11... Rfe8 {[%clk 0:03:02.3]} 12. cxd5 {[%clk 0:03:00.2]} 12... exd5 {[%clk
0:03:02.3]} 13. Bd3 {[%clk 0:03:01.3]} 13... Bxd3 {[%clk 0:02:58.8]} 14. Qxd3
{[%clk 0:03:03.2]} 14... Ne4 {[%clk 0:02:59.9]} 15. Nd2 {[%clk 0:03:03.5]} 15...
Ndf6 {[%clk 0:02:48.2]} 16. Ncxe4 {[%clk 0:03:00.5]} 16... dxe4 {[%clk
0:02:46.2]} 17. Qe2 {[%clk 0:03:00.7]} 17... Nd5 {[%clk 0:02:46.5]} 18. Nc4
{[%clk 0:02:57.3]} 18... Bc7 {[%clk 0:02:47.5]} 19. Rfd1 {[%clk 0:02:53.1]}
19... Qg5 {[%clk 0:02:45.1]} 20. Nd2 {[%clk 0:02:45.9]} 20... Re6 {[%clk
0:02:44.6]} 21. Qg4 {[%clk 0:02:26.4]} 21... Qe7 {[%clk 0:02:43.1]} 22. Re1
{[%clk 0:02:20.6]} 22... Re8 {[%clk 0:02:42.8]} 23. Nc4 {[%clk 0:02:10.2]} 23...
Rg6 {[%clk 0:02:43]} 24. Ba3 {[%clk 0:02:01.6]} 24... Qf6 {[%clk 0:02:28.5]} 25.
Qe2 {[%clk 0:01:47.6]} 25... Qh4 {[%clk 0:02:17.5]} 26. f3 {[%clk 0:01:31.2]}
26... Qxh3 {[%clk 0:02:13.4]} 0-1

[Event "*** Biggest EVER Titled Tuesday"]
[Site "Chess.com"]
[Date "2018.04.17"]
[Round "5"]
[White "josephymwale33"]
[Black "Caterpiller35"]
[Result "1-0"]
[WhiteElo "2151"]
[BlackElo "2217"]
[TimeControl "180+2"]
[EndTime "14:06:19 PDT"]
[Termination "josephymwale33 won by resignation"]

1. d4 {[%clk 0:02:53.1]} 1... Nf6 {[%clk 0:02:59.2]} 2. c4 {[%clk 0:02:53]} 2...
e6 {[%clk 0:03:00.2]} 3. Nf3 {[%clk 0:02:53.6]} 3... b6 {[%clk 0:03:00.7]} 4. g3
{[%clk 0:02:54.8]} 4... Ba6 {[%clk 0:03:00.3]} 5. Nbd2 {[%clk 0:02:52.9]} 5...
c5 {[%clk 0:03:00.6]} 6. dxc5 {[%clk 0:02:53.5]} 6... Bxc5 {[%clk 0:03:00.4]} 7.
e3 {[%clk 0:02:44.9]} 7... O-O {[%clk 0:03:00.4]} 8. a3 {[%clk 0:02:40]} 8...
Bb7 {[%clk 0:02:58.1]} 9. Bg2 {[%clk 0:02:41]} 9... d5 {[%clk 0:02:54.7]} 10. b4
{[%clk 0:02:40.7]} 10... Be7 {[%clk 0:02:53.9]} 11. O-O {[%clk 0:02:41]} 11...
Nbd7 {[%clk 0:02:51.8]} 12. Bb2 {[%clk 0:02:40.2]} 12... Rc8 {[%clk 0:02:51.7]}
13. cxd5 {[%clk 0:02:36.4]} 13... Nxd5 {[%clk 0:02:51.3]} 14. Nb3 {[%clk
0:02:32.3]} 14... Bf6 {[%clk 0:02:50.7]} 15. Nbd4 {[%clk 0:02:28.9]} 15... Nc3
{[%clk 0:02:45.6]} 16. Bxc3 {[%clk 0:02:28]} 16... Rxc3 {[%clk 0:02:45.7]} 17.
Nb5 {[%clk 0:02:29.9]} 17... Rc8 {[%clk 0:02:39.9]} 18. Nd6 {[%clk 0:02:29.8]}
18... Bxf3 {[%clk 0:02:32.1]} 19. Bxf3 {[%clk 0:02:26.4]} 19... Bxa1 {[%clk
0:02:24.3]} 20. Nxc8 {[%clk 0:02:26.8]} 20... Qxc8 {[%clk 0:02:11]} 21. Qxa1
{[%clk 0:02:22]} 21... Qc7 {[%clk 0:02:02.8]} 22. Rc1 {[%clk 0:02:19.1]} 22...
Qd6 {[%clk 0:01:51.2]} 23. Rd1 {[%clk 0:02:19.6]} 23... Qc7 {[%clk 0:01:52.3]}
24. Rc1 {[%clk 0:02:20.3]} 24... Qd6 {[%clk 0:01:51.2]} 25. Rc6 {[%clk
0:02:08.2]} 25... Qe5 {[%clk 0:01:51.6]} 26. Qd1 {[%clk 0:02:06.9]} 26... Qb2
{[%clk 0:01:48.7]} 27. Qxd7 {[%clk 0:02:03.5]} 27... Qxa3 {[%clk 0:01:48.2]} 28.
Rc8 {[%clk 0:02:04.3]} 28... Qxb4 {[%clk 0:01:46.8]} 29. Rxf8+ {[%clk
0:02:05.6]} 29... Qxf8 {[%clk 0:01:42.7]} 30. Qxa7 {[%clk 0:02:05.4]} 30... Qc5
{[%clk 0:01:36.3]} 31. Qa8+ {[%clk 0:02:07.3]} 31... Qf8 {[%clk 0:01:36.4]} 32.
Qxf8+ {[%clk 0:02:05.1]} 32... Kxf8 {[%clk 0:01:38.3]} 33. Bc6 {[%clk
0:02:06.4]} 33... Ke7 {[%clk 0:01:39.3]} 34. Kg2 {[%clk 0:02:05.6]} 34... Kd6
{[%clk 0:01:40.5]} 35. Be8 {[%clk 0:02:06.7]} 35... f6 {[%clk 0:01:41.8]} 36.
Kf3 {[%clk 0:02:08.2]} 36... e5 {[%clk 0:01:41]} 37. Ke4 {[%clk 0:02:09.4]}
37... g6 {[%clk 0:01:42.1]} 38. g4 {[%clk 0:01:58.1]} 38... Kc5 {[%clk
0:01:41.7]} 39. h4 {[%clk 0:01:50.8]} 39... b5 {[%clk 0:01:42.4]} 40. g5 {[%clk
0:01:50.4]} 40... fxg5 {[%clk 0:01:41.7]} 41. hxg5 {[%clk 0:01:52.3]} 41... b4
{[%clk 0:01:42.4]} 1-0

[Event "*** Biggest EVER Titled Tuesday"]
[Site "Chess.com"]
[Date "2018.04.17"]
[Round "5"]
[White "Superfelix"]
[Black "cheese111"]
[Result "0-1"]
[WhiteElo "2343"]
[BlackElo "2410"]
[TimeControl "180+2"]
[EndTime "14:06:27 PDT"]
[Termination "cheese111 won by resignation"]

1. e4 {[%clk 0:03:01.9]} 1... e5 {[%clk 0:03:00.4]} 2. Nf3 {[%clk 0:03:02.7]}
2... Nc6 {[%clk 0:03:01.8]} 3. d4 {[%clk 0:03:02.3]} 3... exd4 {[%clk
0:03:03.7]} 4. Nxd4 {[%clk 0:03:02.7]} 4... Nf6 {[%clk 0:03:05.3]} 5. Nc3 {[%clk
0:03:03.9]} 5... Bb4 {[%clk 0:03:05.9]} 6. Nxc6 {[%clk 0:03:05.3]} 6... bxc6
{[%clk 0:03:07.8]} 7. Bd3 {[%clk 0:03:06]} 7... O-O {[%clk 0:03:09.3]} 8. O-O
{[%clk 0:03:06.7]} 8... d5 {[%clk 0:03:11]} 9. exd5 {[%clk 0:03:08.4]} 9... cxd5
{[%clk 0:03:12.9]} 10. h3 {[%clk 0:03:08.6]} 10... Re8 {[%clk 0:03:09.7]} 11.
Qf3 {[%clk 0:03:09.3]} 11... c6 {[%clk 0:02:59.3]} 12. Bf4 {[%clk 0:03:09.8]}
12... Bd6 {[%clk 0:03:00.5]} 13. Rfe1 {[%clk 0:03:10.5]} 13... Be6 {[%clk
0:02:56.1]} 14. b3 {[%clk 0:03:09.2]} 14... Rb8 {[%clk 0:02:51.4]} 15. Na4
{[%clk 0:03:08.6]} 15... Rb4 {[%clk 0:02:50.4]} 16. Bxd6 {[%clk 0:03:09.6]}
16... Qxd6 {[%clk 0:02:50.9]} 17. Qg3 {[%clk 0:03:11.1]} 17... Qxg3 {[%clk
0:02:40.6]} 18. fxg3 {[%clk 0:03:13]} 18... Nd7 {[%clk 0:02:41]} 19. c3 {[%clk
0:03:08.1]} 19... Rbb8 {[%clk 0:02:37.7]} 20. g4 {[%clk 0:03:08.6]} 20... Kf8
{[%clk 0:02:37.4]} 21. Kf2 {[%clk 0:03:09.6]} 21... c5 {[%clk 0:02:15.7]} 22.
Be2 {[%clk 0:03:09.4]} 22... Rec8 {[%clk 0:02:11.2]} 23. Rad1 {[%clk 0:03:09.1]}
23... Nb6 {[%clk 0:02:11.7]} 24. Nb2 {[%clk 0:03:07.6]} 24... Rd8 {[%clk
0:02:07.5]} 25. Bf3 {[%clk 0:03:08.6]} 25... Rbc8 {[%clk 0:02:03.3]} 26. a4
{[%clk 0:03:03.4]} 26... Rb8 {[%clk 0:01:41.5]} 27. Nd3 {[%clk 0:03:03.2]} 27...
c4 {[%clk 0:01:35.8]} 28. bxc4 {[%clk 0:03:02.2]} 28... Nxa4 {[%clk 0:01:19.8]}
29. Nf4 {[%clk 0:02:45.6]} 29... dxc4 {[%clk 0:01:10.2]} 30. Ra1 {[%clk
0:02:46.4]} 30... Bd7 {[%clk 0:01:04]} 31. Bd5 {[%clk 0:02:43.5]} 31... Nb6
{[%clk 0:00:59.1]} 32. Rxa7 {[%clk 0:02:40.2]} 32... Nxd5 {[%clk 0:00:49.6]} 33.
Nxd5 {[%clk 0:02:42.1]} 33... Rb2+ {[%clk 0:00:49.4]} 34. Kg3 {[%clk 0:02:43.1]}
34... Bc6 {[%clk 0:00:47.9]} 35. Ne3 {[%clk 0:02:40]} 35... Re8 {[%clk
0:00:48.9]} 36. Rc7 {[%clk 0:02:32.2]} 36... Bxg2 {[%clk 0:00:49.1]} 37. Nxg2
{[%clk 0:02:20.9]} 37... Rxg2+ {[%clk 0:00:51]} 38. Kxg2 {[%clk 0:02:22.2]}
38... Rxe1 {[%clk 0:00:52.9]} 39. Rxc4 {[%clk 0:02:23]} 39... Re3 {[%clk
0:00:53.5]} 40. h4 {[%clk 0:02:21.6]} 40... g6 {[%clk 0:00:46.9]} 41. g5 {[%clk
0:02:21]} 41... Kg7 {[%clk 0:00:47.8]} 42. Rc7 {[%clk 0:02:21.7]} 42... h6
{[%clk 0:00:48.8]} 43. c4 {[%clk 0:02:22.3]} 43... hxg5 {[%clk 0:00:48.5]} 44.
hxg5 {[%clk 0:02:24.2]} 44... Re5 {[%clk 0:00:49.8]} 0-1

[Event "*** Biggest EVER Titled Tuesday"]
[Site "Chess.com"]
[Date "2018.04.17"]
[Round "5"]
[White "Illingworth"]
[Black "rezacz"]
[Result "1-0"]
[WhiteElo "2724"]
[BlackElo "2434"]
[TimeControl "180+2"]
[EndTime "14:06:29 PDT"]
[Termination "Illingworth won on time"]

1. c4 {[%clk 0:03:01.9]} 1... e5 {[%clk 0:02:48.8]} 2. Nc3 {[%clk 0:03:03.1]}
2... Nf6 {[%clk 0:02:48.8]} 3. Nf3 {[%clk 0:03:04.3]} 3... d5 {[%clk 0:02:50.4]}
4. cxd5 {[%clk 0:03:04.1]} 4... Bd6 {[%clk 0:02:26.6]} 5. e4 {[%clk 0:03:04.7]}
5... c6 {[%clk 0:02:27.1]} 6. d4 {[%clk 0:03:05.3]} 6... exd4 {[%clk 0:02:26.1]}
7. Qxd4 {[%clk 0:03:06.1]} 7... O-O {[%clk 0:01:40]} 8. e5 {[%clk 0:03:01.8]}
8... Re8 {[%clk 0:01:41.1]} 9. Be2 {[%clk 0:02:56.9]} 9... c5 {[%clk 0:01:26.2]}
10. Qf4 {[%clk 0:02:50.5]} 10... Nh5 {[%clk 0:01:18.5]} 11. Qe4 {[%clk
0:02:38.3]} 11... Nf6 {[%clk 0:00:54.8]} 12. Qc4 {[%clk 0:01:53]} 12... Bxe5
{[%clk 0:00:54.2]} 13. Nxe5 {[%clk 0:01:54.9]} 13... Rxe5 {[%clk 0:00:55.9]} 14.
Bf4 {[%clk 0:01:56.3]} 14... Re8 {[%clk 0:00:47.7]} 15. Qxc5 {[%clk 0:01:56.8]}
15... Na6 {[%clk 0:00:48.6]} 16. Qd4 {[%clk 0:01:57.4]} 16... Bg4 {[%clk
0:00:17]} 17. f3 {[%clk 0:01:56.8]} 17... Bd7 {[%clk 0:00:13.2]} 18. O-O {[%clk
0:01:56.6]} 18... Rc8 {[%clk 0:00:12.6]} 19. Qxa7 {[%clk 0:01:51.2]} 19... Nc5
{[%clk 0:00:11.9]} 20. Rfe1 {[%clk 0:01:47.5]} 20... b6 {[%clk 0:00:08]} 21. Qa3
{[%clk 0:01:42.9]} 21... Ra8 {[%clk 0:00:03.1]} 22. Qb4 {[%clk 0:01:43.6]} 22...
h6 {[%clk 0:00:02.3]} 23. Rad1 {[%clk 0:01:43.8]} 1-0

[Event "*** Biggest EVER Titled Tuesday"]
[Site "Chess.com"]
[Date "2018.04.17"]
[Round "5"]
[White "nihalsarin"]
[Black "maciek_92"]
[Result "1-0"]
[WhiteElo "2741"]
[BlackElo "2574"]
[TimeControl "180+2"]
[EndTime "14:06:34 PDT"]
[Termination "nihalsarin won by checkmate"]

1. e4 {[%clk 0:03:01.9]} 1... c5 {[%clk 0:03:00.4]} 2. Nf3 {[%clk 0:03:02.4]}
2... Nc6 {[%clk 0:03:01]} 3. d4 {[%clk 0:03:00.4]} 3... cxd4 {[%clk 0:03:02.9]}
4. Nxd4 {[%clk 0:03:02.2]} 4... Nf6 {[%clk 0:03:03.9]} 5. Nc3 {[%clk 0:03:03.4]}
5... e5 {[%clk 0:03:05]} 6. Ndb5 {[%clk 0:03:05]} 6... d6 {[%clk 0:03:06.3]} 7.
Nd5 {[%clk 0:03:06.5]} 7... Nxd5 {[%clk 0:03:07]} 8. exd5 {[%clk 0:03:08.4]}
8... Nb8 {[%clk 0:03:08.6]} 9. c4 {[%clk 0:03:09.9]} 9... a6 {[%clk 0:03:08.1]}
10. Nc3 {[%clk 0:03:10.1]} 10... Be7 {[%clk 0:03:09.2]} 11. Be2 {[%clk
0:03:11.6]} 11... O-O {[%clk 0:03:09.6]} 12. O-O {[%clk 0:03:13.1]} 12... Nd7
{[%clk 0:03:07]} 13. Be3 {[%clk 0:03:14.6]} 13... f5 {[%clk 0:03:08]} 14. f3
{[%clk 0:03:12.5]} 14... Bg5 {[%clk 0:03:08.6]} 15. Bf2 {[%clk 0:03:12.6]} 15...
Bh6 {[%clk 0:02:50.1]} 16. b4 {[%clk 0:03:11.7]} 16... a5 {[%clk 0:02:50.7]} 17.
Nb5 {[%clk 0:03:01.5]} 17... Nf6 {[%clk 0:01:25.1]} 18. c5 {[%clk 0:02:57.6]}
18... dxc5 {[%clk 0:01:19.3]} 19. Bxc5 {[%clk 0:02:59.5]} 19... Rf7 {[%clk
0:01:17.7]} 20. Nd6 {[%clk 0:02:56.1]} 20... Rd7 {[%clk 0:01:15]} 21. Nxf5
{[%clk 0:02:55.1]} 21... b6 {[%clk 0:00:47.9]} 22. Nxh6+ {[%clk 0:02:53.7]}
22... gxh6 {[%clk 0:00:49.8]} 23. Be3 {[%clk 0:02:55.1]} 23... Nxd5 {[%clk
0:00:50.6]} 24. Bxh6 {[%clk 0:02:25.2]} 24... Kh8 {[%clk 0:00:47.5]} 25. Qe1
{[%clk 0:02:04.1]} 25... Nxb4 {[%clk 0:00:40.9]} 26. Bb5 {[%clk 0:02:00.1]}
26... Rd5 {[%clk 0:00:41.3]} 27. Bc4 {[%clk 0:01:56.9]} 27... Rc5 {[%clk
0:00:37.3]} 28. Qg3 {[%clk 0:01:39.1]} 28... Qf6 {[%clk 0:00:34.4]} 29. Qg8#
{[%clk 0:01:37.8]} 1-0

[Event "*** Biggest EVER Titled Tuesday"]
[Site "Chess.com"]
[Date "2018.04.17"]
[Round "5"]
[White "chesssharkattack"]
[Black "talento10"]
[Result "1-0"]
[WhiteElo "2389"]
[BlackElo "2339"]
[TimeControl "180+2"]
[EndTime "14:06:34 PDT"]
[Termination "chesssharkattack won by resignation"]

1. e4 {[%clk 0:03:01.9]} 1... c5 {[%clk 0:02:58.2]} 2. Nf3 {[%clk 0:03:02.5]}
2... d6 {[%clk 0:02:59.7]} 3. Bb5+ {[%clk 0:03:02.4]} 3... Nd7 {[%clk
0:02:59.8]} 4. O-O {[%clk 0:03:02.9]} 4... a6 {[%clk 0:03:01.3]} 5. Bxd7+ {[%clk
0:03:02.1]} 5... Bxd7 {[%clk 0:03:03.2]} 6. c4 {[%clk 0:03:03.5]} 6... Nf6
{[%clk 0:03:04.1]} 7. Nc3 {[%clk 0:03:04.8]} 7... g6 {[%clk 0:03:05.3]} 8. d4
{[%clk 0:03:05.6]} 8... cxd4 {[%clk 0:03:07.2]} 9. Nxd4 {[%clk 0:03:07.2]} 9...
Bg7 {[%clk 0:03:09.1]} 10. f3 {[%clk 0:03:07.8]} 10... O-O {[%clk 0:03:10.7]}
11. Be3 {[%clk 0:03:09.2]} 11... Rc8 {[%clk 0:03:11.4]} 12. Qe2 {[%clk
0:03:08.8]} 12... Qc7 {[%clk 0:01:16.3]} 13. Rac1 {[%clk 0:03:06.7]} 13... Rfe8
{[%clk 0:01:11.4]} 14. b3 {[%clk 0:03:06.8]} 14... Qa5 {[%clk 0:01:12]} 15. a4
{[%clk 0:03:06.7]} 15... b5 {[%clk 0:01:09.4]} 16. axb5 {[%clk 0:03:04.9]} 16...
axb5 {[%clk 0:01:11.1]} 17. Ncxb5 {[%clk 0:03:06.8]} 17... Bxb5 {[%clk 0:01:11]}
18. Nxb5 {[%clk 0:03:08.7]} 18... Nd7 {[%clk 0:00:57.5]} 19. Qd2 {[%clk
0:02:58.5]} 19... Qa8 {[%clk 0:00:42.9]} 20. Bd4 {[%clk 0:02:58.5]} 20... Ne5
{[%clk 0:00:42.5]} 21. f4 {[%clk 0:02:55.8]} 21... Nc6 {[%clk 0:00:43.5]} 22.
Bxg7 {[%clk 0:02:56.5]} 22... Kxg7 {[%clk 0:00:45.4]} 23. Qc3+ {[%clk
0:02:56.7]} 23... Kg8 {[%clk 0:00:45.7]} 24. f5 {[%clk 0:02:53.7]} 24... g5
{[%clk 0:00:43.2]} 25. f6 {[%clk 0:02:53.6]} 25... Ne5 {[%clk 0:00:38.4]} 26.
Qg3 {[%clk 0:02:42.3]} 26... h6 {[%clk 0:00:29]} 27. fxe7 {[%clk 0:02:39.2]}
27... Qxe4 {[%clk 0:00:29.7]} 28. Rce1 {[%clk 0:02:26.3]} 28... Qg6 {[%clk
0:00:30.3]} 29. Nxd6 {[%clk 0:02:19.4]} 29... Qxd6 {[%clk 0:00:29.5]} 30. Rxe5
{[%clk 0:02:20.5]} 30... Qc7 {[%clk 0:00:05.2]} 1-0

[Event "*** Biggest EVER Titled Tuesday"]
[Site "Chess.com"]
[Date "2018.04.17"]
[Round "5"]
[White "belisarius64"]
[Black "ViktorMatviishen"]
[Result "0-1"]
[WhiteElo "2496"]
[BlackElo "2524"]
[TimeControl "180+2"]
[EndTime "14:06:52 PDT"]
[Termination "ViktorMatviishen won by resignation"]

1. d4 {[%clk 0:03:01.9]} 1... Nf6 {[%clk 0:03:00.8]} 2. c4 {[%clk 0:03:02.6]}
2... e6 {[%clk 0:03:02.2]} 3. Nf3 {[%clk 0:03:03.5]} 3... b6 {[%clk 0:03:02.5]}
4. g3 {[%clk 0:03:04.4]} 4... Ba6 {[%clk 0:03:04.1]} 5. b3 {[%clk 0:03:05.6]}
5... Bb4+ {[%clk 0:03:04.2]} 6. Bd2 {[%clk 0:03:06.4]} 6... Be7 {[%clk
0:03:05.7]} 7. Bg2 {[%clk 0:03:07.9]} 7... d5 {[%clk 0:03:05.8]} 8. O-O {[%clk
0:03:08.4]} 8... O-O {[%clk 0:03:06]} 9. Nc3 {[%clk 0:03:08.8]} 9... c6 {[%clk
0:03:06.1]} 10. Ne5 {[%clk 0:03:01.2]} 10... Nfd7 {[%clk 0:03:05.2]} 11. cxd5
{[%clk 0:02:56.6]} 11... Nxe5 {[%clk 0:02:58.5]} 12. dxe5 {[%clk 0:02:57.1]}
12... cxd5 {[%clk 0:02:59.3]} 13. Re1 {[%clk 0:02:57.1]} 13... Nd7 {[%clk
0:02:57.4]} 14. f4 {[%clk 0:02:54.9]} 14... Rc8 {[%clk 0:02:58.1]} 15. e3 {[%clk
0:02:43.5]} 15... Nc5 {[%clk 0:02:57.9]} 16. Bf1 {[%clk 0:02:33]} 16... Bxf1
{[%clk 0:02:55.8]} 17. Rxf1 {[%clk 0:02:27.4]} 17... f6 {[%clk 0:02:52.4]} 18.
exf6 {[%clk 0:02:27.2]} 18... Bxf6 {[%clk 0:02:54.3]} 19. Rc1 {[%clk 0:02:23.6]}
19... Qe8 {[%clk 0:02:34]} 20. Qe2 {[%clk 0:02:19.6]} 20... Qg6 {[%clk
0:02:29.5]} 21. Nb5 {[%clk 0:02:18.3]} 21... Ne4 {[%clk 0:02:25]} 22. Nxa7
{[%clk 0:02:12.7]} 22... Ra8 {[%clk 0:02:20.7]} 23. Rc7 {[%clk 0:02:10.4]} 23...
Rf7 {[%clk 0:01:41]} 24. Rc8+ {[%clk 0:01:48.8]} 24... Rxc8 {[%clk 0:01:40.2]}
25. Nxc8 {[%clk 0:01:50.7]} 25... Rc7 {[%clk 0:01:39.5]} 26. Nxb6 {[%clk
0:01:44.7]} 26... Rc2 {[%clk 0:01:37.5]} 27. f5 {[%clk 0:01:35.5]} 27... exf5
{[%clk 0:01:31.2]} 28. Rd1 {[%clk 0:01:36.1]} 28... f4 {[%clk 0:01:08.2]} 29.
exf4 {[%clk 0:01:27.5]} 29... Bd4+ {[%clk 0:01:06.9]} 30. Kh1 {[%clk 0:01:24.6]}
30... Bxb6 {[%clk 0:01:06.4]} 31. Qb5 {[%clk 0:01:21.8]} 31... Nf2+ {[%clk
0:00:54.8]} 32. Kg2 {[%clk 0:01:22.9]} 32... Qe4+ {[%clk 0:00:54.9]} 33. Kf1
{[%clk 0:01:23.4]} 33... Qh1+ {[%clk 0:00:52.7]} 0-1